fUST/lending_fUST_20260226
["ID","MTS","AMOUNT","RATE_DAILY","PERIOD"]
[406697958,1772095760043,-500.0,0.00013696,2]
[406697959,1772095760065,-500.0,0.00013696,2]
[406697960,1772095760090,-500.0,0.00013696,2]
[406697961,1772095760112,-500.0,0.00013696,2]
[406697962,1772095760134,-427.74176078,0.00013696,2]
[406697963,1772095760157,-500.0,0.00013696,2]
[406697964,1772095760179,-500.0,0.00013696,2]
[406697965,1772095760201,-374.22024033,0.00013696,2]
[406697966,1772095760224,-500.0,0.00013696,2]
[406697967,1772095760248,-273.61572582,0.00013696,2]
[406697968,1772095761138,-226.38427418,0.00013696,2]
[406697969,1772095761160,-500.0,0.00013696,2]
[406697970,1772095761182,-500.0,0.00013696,2]
[406697971,1772095761203,-500.0,0.00013696,2]
[406697972,1772095761225,-500.0,0.00013696,2]
[406697973,1772095761245,-299.7538005,0.00013698,2]
[406697974,1772095764064,-200.2461995,0.00013698,2]
[406697975,1772095764083,-526.92992814,0.00013698,2]
[406697976,1772095764101,-500.0,0.00013698,2]
[406697977,1772095764286,-500.0,0.00013698,2]
[406697978,1772095764305,-500.0,0.00013698,2]
[406697979,1772095764325,-361.72402766,0.00013698,2]
[406697980,1772095764344,-500.0,0.00013698,2]
[406697981,1772095764362,-500.0,0.00013698,2]
[406697982,1772095764380,-500.0,0.00013698,2]
[406697983,1772095764400,-500.0,0.00013698,2]
[406697984,1772095764419,-46.52569288,0.00013698,2]
[406697985,1772095766079,-453.47430712,0.00013698,2]
[406697986,1772095766099,-1000.0,0.00013699,2]
[406697987,1772095766118,-500.0,0.00013699,2]
[406697988,1772095766139,-237.50461948,0.00013699,2]
[406697989,1772095766157,-325.88963744,0.00013699,2]
[406697990,1772095766175,-576.85122905,0.00013699,2]
[406697991,1772095766195,-160.91314934,0.00013699,2]
[406697992,1772095766214,-500.0,0.00013699,2]
[406697993,1772095766231,-500.0,0.00013699,2]
[406697994,1772095766249,-178.17438373,0.00013699,2]
[406697995,1772095766268,-161.33088549,0.00013699,2]
[406697996,1772095766286,-500.0,0.00013699,2]
[406697997,1772095766305,-500.0,0.00013699,2]
[406697998,1772095766323,-301.01845214,0.00013699,2]
[406697999,1772095766343,-242.32245964,0.00013699,2]
[406698000,1772095774303,-257.67754036,0.00013699,2]
[406698001,1772095774322,-500.0,0.00013699,2]
[406698002,1772095774341,-500.0,0.00013699,2]
[406698003,1772095774362,-500.0,0.00013699,2]
[406698004,1772095774381,-500.0,0.00013699,2]
[406698005,1772095774400,-194.54041969,0.00013699,2]
[406698006,1772095774418,-500.0,0.00013699,2]
[406698007,1772095774436,-500.0,0.00013699,2]
[406698008,1772095774455,-158.21933482,0.00013699,2]
[406698009,1772095774475,-500.0,0.00013699,2]
[406698010,1772095774494,-203.12458145,0.00013699,2]
[406698046,1772095837981,-612.12899041,0.00013273,2]
[406698047,1772095837992,-500.0,0.00013273,2]
[406698048,1772095838002,-500.0,0.00013273,2]
[406698049,1772095838013,-119.38716221,0.00013698,2]
[406698064,1772095843688,-1080.61283779,0.00013698,2]
[406698065,1772095843697,-500.0,0.00013699,2]
[406698066,1772095843707,-500.0,0.00013699,2]
[406698067,1772095843716,-500.0,0.00013699,2]
[406698068,1772095843726,-500.0,0.00013699,2]
[406698069,1772095843736,-500.0,0.00013699,2]
[406698070,1772095843746,-500.0,0.00013699,2]
[406698071,1772095843756,-500.0,0.00013699,2]
[406698072,1772095843766,-500.0,0.00013699,2]
[406698073,1772095843776,-500.0,0.00013699,2]
[406698074,1772095843786,-411.6,0.00013699,2]
[406698075,1772095843796,-500.0,0.00013699,2]
[406698076,1772095843806,-500.0,0.00013699,2]
[406698077,1772095843817,-455.24873046,0.00013699,2]
[406698078,1772095843827,-500.0,0.00013699,2]
[406698079,1772095843837,-500.0,0.00013699,2]
[406698080,1772095843849,-500.0,0.00013699,2]
[406698081,1772095843859,-500.0,0.00013699,2]
[406698082,1772095843871,-500.0,0.00013699,2]
[406698083,1772095843881,-500.0,0.00013699,2]
[406698084,1772095843890,-500.0,0.00013699,2]
[406698085,1772095843899,-500.0,0.00013699,2]
[406698086,1772095843909,-500.0,0.00013699,2]
[406698087,1772095843919,-500.0,0.00013699,2]
[406698088,1772095843930,-150.0,0.000137,2]
[406698089,1772095843940,-449.08727091,0.0001382,2]
[406698090,1772095843950,-1000.0,0.0001382,2]
[406698091,1772095843959,-505.86326619,0.00013821,2]
[406698092,1772095843969,-1000.0,0.00013821,2]
[406698093,1772095843979,-1000.0,0.00013821,2]
[406698094,1772095843988,-1000.0,0.00013821,2]
[406698095,1772095843997,-1105.5525976,0.00013882,2]
[406698096,1772095844007,-600.0,0.00013969,2]
[406698097,1772095844017,-380.69989385,0.00014246,2]
[406698098,1772095844027,-500.0,0.00014246,2]
[406698099,1772095844036,-394.35013566,0.00014247,2]
[406698100,1772095844046,-507.38320074,0.00014247,2]
[406698101,1772095844055,-296.87541855,0.00014247,2]
[406698102,1772095844065,-865.3261928,0.00014247,2]
[406698103,1772095844074,-391.202463,0.00014367,2]
[406698104,1772095844085,-546.27994742,0.00014368,2]
[406698105,1772095844096,-500.0,0.00014368,2]
[406698106,1772095844106,-500.0,0.00014368,2]
[406698107,1772095844116,-500.0,0.00014368,2]
[406698108,1772095844125,-500.0,0.00014368,2]
[406698109,1772095844135,-1500.0,0.00014368,2]
[406698110,1772095844145,-1500.0,0.00014368,2]
[406698111,1772095844155,-1500.0,0.00014368,2]
[406698112,1772095844164,-500.0,0.00014529,2]
[406698113,1772095844173,-500.0,0.00014529,2]
[406698114,1772095844183,-507.47767507,0.00014529,2]
[406698115,1772095844193,-500.0,0.00014529,2]
[406698116,1772095844203,-500.0,0.00014529,2]
[406698117,1772095844212,-500.0,0.00014794,2]
[406698118,1772095844222,-500.0,0.00014794,2]
[406698119,1772095844232,-474.71069866,0.00014794,2]
[406698120,1772095844241,-500.0,0.00014803,2]
[406698121,1772095844251,-1146.34,0.00014808,2]
[406698122,1772095844260,-1255.62507936,0.00014908,2]
[406698123,1772095844270,-500.0,0.00014916,2]
[406698124,1772095844279,-500.0,0.00014916,2]
[406698125,1772095844288,-2000.0,0.00014916,2]
[406698126,1772095844298,-2000.0,0.00014916,2]
[406698127,1772095844307,-2000.0,0.00014916,2]
[406698128,1772095844317,-344.05988196,0.00015048,2]
[406698129,1772095844326,-500.0,0.00015065,2]
[406698130,1772095844335,-768.0,0.00015067,2]
[406698131,1772095844345,-500.0,0.00015342,2]
[406698132,1772095844354,-500.0,0.00015342,2]
[406698133,1772095844363,-720.0,0.00015366,2]
[406698134,1772095844372,-500.0,0.00015464,2]
[406698135,1772095844382,-500.0,0.00015464,2]
[406698136,1772095844392,-2500.0,0.00015464,2]
[406698137,1772095844401,-1232.81420429,0.00015464,2]
[406698138,1772095844411,-2500.0,0.00015464,2]
[406698139,1772095844420,-200.0,0.000157,2]
[406698140,1772095844429,-500.0,0.000157,2]
[406698141,1772095844443,-500.0,0.000157,2]
[406698142,1772095844453,-500.0,0.000157,2]
[406698143,1772095844463,-500.0,0.000157,2]
[406698144,1772095844472,-500.0,0.000157,2]
[406698145,1772095844482,-500.0,0.000157,2]
[406698146,1772095844491,-500.0,0.000157,2]
[406698147,1772095844500,-500.0,0.000157,2]
[406698148,1772095844510,-500.0,0.00015847,2]
[406698149,1772095844520,-621.83,0.00016012,2]
[406698150,1772095844530,-3000.0,0.00016012,2]
[406698151,1772095844539,-2535.12158538,0.00016012,2]
[406698152,1772095844549,-1706.2677102,0.00016229,2]
[406698153,1772095844559,-200.0,0.00016254,3]
[406698154,1772095844573,-500.0,0.00016485,2]
[406698155,1772095844582,-171.92,0.00016485,2]
[406698156,1772095844591,-2982.65676882,0.0001656,2]
[406698157,1772095844602,-864.0,0.00016902,2]
[406698158,1772095844611,-396.54359276,0.00017048,2]
[406698159,1772095844621,-500.0,0.0001727,2]
[406698160,1772095844630,-171.92,0.0001727,2]
[406698161,1772095844641,-161.18023076,0.00017485,2]
[406698162,1772095844651,-500.0,0.00018019,2]
[406698163,1772095844660,-250.0,0.000181,2]
[406698164,1772095844670,-744.71502317,0.00018448,2]
[406698165,1772095844680,-1000.0,0.00018593,2]
[406698166,1772095844690,-403.0,0.0001904,2]
[406698167,1772095844699,-449.02730357,0.00019048,2]
[406698168,1772095844708,-376.077001,0.00019521,7]
[406698169,1772095844718,-200.0,0.00019651,4]
[406698170,1772095844729,-281.6,0.0002,2]
[406698171,1772095844738,-150.0,0.0002,10]
[406698172,1772095844748,-1000.0,0.00020452,2]
[406698173,1772095844758,-244.0,0.00020452,2]
[406698174,1772095844767,-500.0,0.00020645,2]
[406698175,1772095844776,-500.0,0.00020665,2]
[406698176,1772095844787,-2181.0,0.0002067,2]
[406698177,1772095844796,-637.0,0.0002067,2]
[406698178,1772095844806,-1386.0,0.0002067,2]
[406698179,1772095844816,-150.0,0.0002067,2]
[406698180,1772095844826,-638.7785651,0.00020787,2]
[406698181,1772095844835,-246.53,0.0002099,3]
[406698182,1772095844845,-5000.0,0.00021,2]
[406698183,1772095844854,-501.51101438,0.00021048,2]
[406698184,1772095844863,-500.0,0.00021129,2]
[406698185,1772095844873,-500.0,0.00021129,2]
[406698186,1772095844883,-500.0,0.00021129,2]
[406698187,1772095844894,-500.0,0.00021129,2]
[406698188,1772095844904,-500.0,0.00021129,2]
[406698189,1772095844913,-500.0,0.00021129,2]
[406698190,1772095844923,-500.0,0.00021129,2]
[406698191,1772095844932,-500.0,0.00021129,2]
[406698192,1772095844942,-194.72792766,0.00021129,2]
[406698193,1772095844951,-500.0,0.00021129,2]
[406698194,1772095844960,-201.93286099,0.00021129,2]
[406698195,1772095844970,-500.0,0.00021129,2]
[406698196,1772095844979,-209.40437684,0.00021129,2]
[406698197,1772095844989,-500.0,0.00021129,2]
[406698198,1772095844998,-217.15233878,0.00021129,2]
[406698199,1772095845008,-225.18697532,0.00021129,2]
[406698200,1772095845018,-233.51889341,0.00021129,2]
[406698201,1772095845028,-242.15909246,0.00021129,2]
[406698202,1772095845038,-500.0,0.00021129,2]
[406698203,1772095845047,-500.0,0.00021129,2]
[406698204,1772095845057,-251.11897888,0.00021129,2]
[406698205,1772095845066,-260.4103811,0.00021129,2]
[406698206,1772095845076,-270.0455652,0.00021129,2]
[406698207,1772095845085,-280.03725112,0.00021129,2]
[406698208,1772095845095,-500.0,0.00021129,2]
[406698209,1772095845104,-290.39862941,0.00021129,2]
[406698210,1772095845113,-500.0,0.00021129,2]
[406698211,1772095845123,-301.1433787,0.00021129,2]
[406698212,1772095845132,-500.0,0.00021129,2]
[406698213,1772095845142,-500.0,0.00021129,2]
[406698214,1772095845151,-500.0,0.00021129,2]
[406698215,1772095845161,-500.0,0.00021129,2]
[406698216,1772095845170,-165.39502439,0.00021129,2]
[406698217,1772095845179,-500.0,0.00021182,2]
[406698218,1772095845189,-10000.0,0.00021231,2]
[406698219,1772095845198,-500.0,0.00021503,2]
[406698220,1772095845207,-164.82332933,0.00021505,2]
[406698221,1772095845217,-2000.0,0.00021917,2]
[406698222,1772095845227,-179.73040439,0.00021949,2]
[406698223,1772095845237,-500.0,0.00022198,2]
[406698224,1772095845247,-500.0,0.00022215,2]
[406698225,1772095845256,-493.06,0.0002236,3]
[406698226,1772095845266,-1000.0,0.00022497,10]
[406698227,1772095845276,-492.0,0.00022497,10]
[406698228,1772095845285,-160.24000886,0.00022528,5]
[406698229,1772095845294,-500.0,0.00022681,2]
[406698230,1772095845303,-739.62,0.00022747,3]
[406698231,1772095845312,-3662.0,0.00022868,10]
[406698232,1772095845322,-553.99472519,0.00023048,2]
[406698233,1772095845332,-222.03383937,0.00023224,5]
[406698234,1772095845341,-500.0,0.0002349,2]
[406698235,1772095845351,-1983.076246,0.00023491,30]
[406698236,1772095845360,-200.0,0.000235,8]
[406698237,1772095845370,-317.94333475,0.0002352,2]
[406698238,1772095845379,-500.0,0.0002355,60]
[406698239,1772095845389,-171.92,0.0002355,60]
[406698240,1772095845398,-500.0,0.00023565,2]
[406698241,1772095845407,-2181.0,0.0002367,2]
[406698242,1772095845417,-637.0,0.0002367,2]
[406698243,1772095845427,-1386.0,0.0002367,2]
[406698244,1772095845437,-500.0,0.00023763,2]
[406698245,1772095845446,-24781.75112622,0.00023892,7]
[406698246,1772095845456,-1234.6489511,0.00023894,2]
[406698247,1772095845465,-3826.3599957,0.00023894,2]
[406698248,1772095845475,-261.49245519,0.00023896,7]
[406698249,1772095845486,-36618.32715406,0.00024,2]
[406698250,1772095845495,-247.10898714,0.00024,60]
[406698251,1772095845506,-1000.0,0.00024,30]
[406698252,1772095845516,-286.0,0.00024,30]
[406698253,1772095845526,-744.71502317,0.00024,7]
[406698254,1772095845535,-5036.31,0.00024,2]
[406698256,1772095845545,-1125.47310456,0.00024,2]
[406698257,1772095845557,-403.0,0.00024016,3]
[406698258,1772095845567,-812.0,0.00024031,3]
[406698259,1772095845577,-6406.45999071,0.00024043,68]
[406698260,1772095845586,-162.0,0.00024045,3]
[406698261,1772095845596,-3027.49368103,0.00024069,65]
[406698263,1772095845607,-2467.82183834,0.00024108,120]
[406698264,1772095845617,-4709.12826671,0.00024138,61]
[406698265,1772095845628,-2141.02093328,0.00024142,2]
[406698266,1772095845637,-547.7280467,0.00024158,69]
[406698268,1772095845648,-689.08511609,0.00024158,69]
[406698269,1772095845657,-190.0,0.00024164,7]
[406698270,1772095845666,-6406.45999071,0.00024321,70]
[406698271,1772095845676,-715.0,0.00024336,3]
[406698272,1772095845685,-4897.80868802,0.00024348,2]
[406698273,1772095845694,-715.0,0.00024351,3]
[406698275,1772095845704,-200.0,0.00024416,30]
[406698276,1772095845713,-200.0,0.00024416,30]
[406698277,1772095845723,-155.0,0.00024416,30]
[406698278,1772095845732,-3027.49368103,0.00024416,68]
[406698279,1772095845742,-268.0,0.00024426,30]
[406698280,1772095845751,-4709.12826671,0.00024451,63]
[406698281,1772095845761,-305.86171464,0.0002446,71]
[406698282,1772095845771,-244.28754087,0.0002446,71]
[406698283,1772095845780,-400.9512445,0.0002446,71]
[406698284,1772095845790,-487.0,0.0002446,2]
[406698285,1772095845799,-487.0,0.0002446,2]
[406698286,1772095845809,-487.0,0.0002446,2]
[406698287,1772095845818,-487.0,0.0002446,2]
[406698288,1772095845828,-487.0,0.0002446,2]
[406698289,1772095845837,-487.0,0.0002446,2]
[406698290,1772095845846,-487.0,0.0002446,2]
[406698291,1772095845856,-487.0,0.0002446,2]
[406698292,1772095845866,-691.66,0.0002446,2]
[406698293,1772095845875,-715.0,0.00024477,3]
[406698294,1772095845885,-6406.45999071,0.00024599,72]
[406698295,1772095845894,-403.0,0.00024614,3]
[406698296,1772095845905,-547.7280467,0.00024628,72]
[406698297,1772095845915,-689.08511609,0.00024628,72]
[406698298,1772095845925,-683.4837,0.00024648,7]
[406698299,1772095845935,-517.21442422,0.0002465,2]
[406698300,1772095845944,-120309.38080103,0.0002465,2]
[406698301,1772095845954,-17124.11478423,0.0002465,2]
[406698302,1772095845964,-2000.0,0.00024657,12]
[406698303,1772095845974,-160.0,0.00024658,2]
[406698304,1772095845983,-160.0,0.00024658,2]
[406698305,1772095845992,-160.0,0.00024658,2]
[406698306,1772095846002,-160.0,0.00024658,2]
[406698307,1772095846012,-160.0,0.00024658,2]
[406698308,1772095846021,-203.46465514,0.00024658,2]
[406698309,1772095846030,-150.0,0.00024658,2]
[406698310,1772095846039,-200.0,0.00024658,2]
[406698311,1772095846049,-380.0,0.00024658,2]
[406698312,1772095846059,-150.0,0.00024658,2]
[406698313,1772095846070,-162.20225462,0.00024664,5]
[406698314,1772095846079,-150.0,0.00024713,2]
[406698315,1772095846088,-1000.0,0.00024747,10]
[406698316,1772095846099,-791.0,0.00024747,10]
[406698317,1772095846109,-4709.12826671,0.00024763,65]
[406698318,1772095846118,-3027.49368103,0.00024764,70]
[406698319,1772095846128,-150.0,0.00024768,2]
[406698320,1772095846138,-607.60920294,0.000248,2]
[406698321,1772095846147,-8912.29193104,0.000248,2]
[406698322,1772095846157,-500.0,0.00024805,2]
[406698323,1772095846166,-193.24848161,0.00024822,2]
[406698324,1772095846176,-1114.03649138,0.00024835,2]
[406698325,1772095846186,-500.0,0.00024867,2]
[406698326,1772095846195,-6406.45999071,0.00024877,74]
[406698327,1772095846205,-12254.4014052,0.0002489,2]
[406698328,1772095846215,-128152.25,0.000249,2]
[406698329,1772095846225,-187.609683,0.000249,2]
[406698330,1772095846235,-151.0,0.000249,2]
[406698331,1772095846244,-314339.90116283,0.000249,2]
[406698332,1772095846259,-297462.48395817,0.000249,2]
[406698333,1772095846268,-1088.114445,0.0002498,5]
[406698334,1772095846280,-100000.0,0.0002499,2]
[406698335,1772095846289,-2691.28160496,0.00025,2]
[406698336,1772095846299,-10364.0,0.00025,2]
[406698337,1772095846308,-150.0,0.00025,2]
[406698338,1772095846318,-500.0,0.00025,2]
[406698339,1772095846328,-764.78340661,0.00025,2]
[406698340,1772095846337,-3029.06222755,0.00025,30]
[406698341,1772095846348,-726.26513094,0.00025,120]
[406698342,1772095846357,-200.0,0.00025,17]
[406698343,1772095846366,-517.0,0.00025,120]
[406698344,1772095846376,-1000.0,0.00025,4]
[406698345,1772095846386,-10000.0,0.00025,10]
[406698346,1772095846395,-1430.0,0.00025,10]
[406698347,1772095846405,-10000.0,0.00025,3]
[406698348,1772095846414,-22318.867,0.00025,7]
[406698349,1772095846424,-1000.0,0.00025,30]
[406698350,1772095846433,-200.0,0.00025,30]
[406698351,1772095846442,-3804.36362221,0.00025,2]
[406698352,1772095846452,-5152.99198599,0.00025,2]
[406698353,1772095846462,-1000.0,0.00025,5]
[406698354,1772095846471,-3167.84,0.00025,30]
[406698355,1772095846480,-1121.0,0.00025,2]
[406698356,1772095846489,-744.71502317,0.00025,7]
[406698357,1772095846498,-606.47843599,0.00025048,2]
[406698358,1772095846507,-4709.12826671,0.00025076,68]
[406698359,1772095846517,-547.7280467,0.00025098,76]
[406698360,1772095846526,-689.08511609,0.00025098,76]
[406698361,1772095846536,-3027.49368103,0.00025111,72]
[406698362,1772095846545,-200.0,0.00025122,30]
[406698363,1772095846555,-336.0,0.00025122,30]
[406698364,1772095846568,-6406.45999071,0.00025155,76]
[406698365,1772095846737,-200.0,0.000252,30]
[406698366,1772095846757,-200.0,0.000252,30]
[406698367,1772095846766,-200.0,0.000252,30]
[406698368,1772095846776,-200.0,0.000252,30]
[406698369,1772095846785,-200.0,0.000252,30]
[406698370,1772095846795,-362.46276798,0.000252,30]
[406698371,1772095846804,-250.0,0.00025205,2]
[406698372,1772095846814,-403.0,0.00025254,3]
[406698373,1772095846823,-715.0,0.00025254,3]
[406698374,1772095846833,-500.0,0.00025254,7]
[406698375,1772095846842,-154.0,0.00025263,120]
[406698376,1772095846851,-403.0,0.00025294,3]
[406698377,1772095846861,-715.0,0.00025294,3]
[406698378,1772095846870,-500.0,0.00025309,7]
[406698379,1772095846880,-500.0,0.0002532,7]
[406698380,1772095846889,-174.730531,0.00025342,2]
[406698381,1772095846898,-5542.26906599,0.00025355,2]
[406698382,1772095846907,-500.0,0.00025365,7]
[406698383,1772095846918,-196.0,0.00025373,7]
[406698384,1772095846928,-858.84866433,0.00025387,5]
[406698385,1772095846937,-4709.12826671,0.00025388,70]
[406698386,1772095846947,-20703.8,0.000254,5]
[406698387,1772095846957,-151.0,0.000254,2]
[406698388,1772095846967,-158.95746701,0.00025427,5]
[406698389,1772095846976,-6406.45999071,0.00025433,79]
[406698390,1772095846986,-244.28754087,0.00025433,79]
[406698391,1772095846995,-305.86171464,0.00025433,79]
[406698392,1772095847006,-400.9512445,0.00025433,79]
[406698393,1772095847015,-132643.30208221,0.00025444,2]
[406698394,1772095848056,-250.0,0.00021129,2]
[406698395,1772095848066,-203.0,0.00021129,2]
[406698396,1772095848076,-1213.42662296,0.00022538,10]
[406698397,1772096254604,3263.16724096,0.00012001,2]
[406698398,1772096262971,5000.0,0.00012001,2]
[406698399,1772096271260,613.2215627,0.00012001,2]
[406698410,1772096599607,1592.7625988,0.0001192,2]
[406698411,1772096674409,2078.16906157,0.00012001,2]
[406698412,1772096733129,-353.30149799,0.00012309,2]
[406698413,1772096766046,242.397806,9.522e-05,30]
[406698414,1772096766075,1265.222194,9.522e-05,30]
[406698415,1772096766405,934.777806,0.00010103,30]
[406698416,1772096766433,2080.462194,0.00010103,30]
[406698417,1772096766776,119.537806,0.00010684,30]
[406698418,1772096766810,4403.322194,0.00010684,30]
[406698419,1772096767147,6030.48,0.00011265,30]
[406698420,1772096767548,7538.1,0.00011846,30]
[406698421,1772096790545,1219.8,9.01e-05,30]
[406698422,1772096790925,2439.6,9.56e-05,30]
[406698423,1772096791282,3659.41,0.0001011,30]
[406698424,1772096792144,4879.21,0.0001066,30]
[406698425,1772096792505,6099.01,0.0001121,30]
[406698426,1772096792867,7318.81,0.0001176,30]
[406698431,1772096844125,-2363.64998585,0.00012223,5]
[406698432,1772096946086,-636.35001415,0.00012223,5]
[406698433,1772096946108,-3273.0,0.000123,5]
[406698434,1772096946130,-846.69850201,0.00012309,2]
[406698435,1772096946153,-300.0,0.00012309,2]
[406698436,1772096946174,-300.0,0.00012309,2]
[406698437,1772096946195,-300.0,0.0001231,2]
[406698438,1772096946218,-300.0,0.0001231,2]
[406698439,1772096946241,-208.0,0.0001231,2]
[406698440,1772096946265,-240.89725106,0.0001231,2]
[406698441,1772096946286,-500.0,0.00012311,2]
[406698442,1772096946306,-500.0,0.00012311,2]
[406698443,1772096946328,-500.0,0.00012311,2]
[406698444,1772096946349,-500.0,0.00012311,2]
[406698445,1772096946370,-500.0,0.00012311,2]
[406698446,1772096946390,-500.0,0.00012311,2]
[406698447,1772096946418,-594.0,0.00012311,2]
[406698448,1772096946438,-500.0,0.00012311,2]
[406698449,1772096946459,-500.0,0.00012311,2]
[406698450,1772096946479,-500.0,0.00012311,2]
[406698451,1772096946499,-500.0,0.00012311,2]
[406698452,1772096946520,-500.0,0.00012311,2]
[406698453,1772096946541,-500.0,0.00012311,2]
[406698454,1772096946561,-500.0,0.00012311,2]
[406698455,1772096946584,-200.0,0.00012525,2]
[406698456,1772096946619,-600.0,0.00012556,2]
[406698457,1772096946639,-1004.63090651,0.00012562,2]
[406698458,1772096946660,-3103.1316202,0.00012597,2]
[406698459,1772096946681,-180.68072,0.00012745,2]
[406698460,1772096946700,-15019.04098136,0.00013136,2]
[406698461,1772096952151,-294.22351104,0.00013135,2]
[406698462,1772096952170,-1156.87036862,0.00013136,2]
[406698463,1772096952191,-617.12355947,0.00013273,2]
[406698464,1772096952211,-500.0,0.00013273,2]
[406698465,1772096952234,-551.08165416,0.00013273,2]
[406698466,1772096952252,-500.0,0.00013273,2]
[406698467,1772096952273,-564.72806545,0.00013273,2]
[406698468,1772096952292,-500.0,0.00013273,2]
[406698469,1772096952311,-500.0,0.00013273,2]
[406698470,1772096952329,-500.0,0.00013273,2]
[406698471,1772096952348,-386.81625403,0.00013273,2]
[406698472,1772096952367,-500.0,0.00013273,2]
[406698473,1772096952386,-180.68072,0.00013282,2]
[406698474,1772096952406,-420.0,0.00013508,2]
[406698475,1772096952425,-1181.0,0.0001354,2]
[406698476,1772096952444,-3789.85,0.0001369,2]
[406698477,1772096952464,-500.0,0.00013698,2]
[406698478,1772096952483,-500.0,0.00013698,2]
[406698479,1772096952501,-500.0,0.00013698,2]
[406698480,1772096952520,-58430.7890847,0.00013699,2]
[406698481,1772096952540,-160.84815187,0.00013699,2]
[406698482,1772096952561,-500.0,0.00013699,2]
[406698483,1772096952581,-221.7836958,0.00013699,2]
[406698484,1772096952601,-317.24757628,0.00013699,2]
[406698485,1772096952621,-500.0,0.00013699,2]
[406698486,1772096952641,-500.0,0.00013699,2]
[406698487,1772096952663,-501.83965359,0.00013699,2]
[406698488,1772096952682,-500.0,0.00013699,2]
[406698489,1772096952702,-515.10493437,0.00013699,2]
[406698490,1772096952721,-504.92646284,0.00013699,2]
[406698491,1772096952739,-500.0,0.00013699,2]
[406698492,1772096952758,-500.0,0.00013699,2]
[406698493,1772096952778,-171.72669464,0.00013699,2]
[406698494,1772096952798,-500.0,0.00013699,2]
[406698495,1772096952820,-524.78823161,0.00013699,2]
[406698496,1772096952845,-506.60712384,0.00013699,2]
[406698497,1772096952866,-500.0,0.00013699,2]
[406698498,1772096952892,-202.89528617,0.00013699,2]
[406698499,1772096952913,-500.0,0.00013699,2]
[406698500,1772096953104,-720.0,0.00013812,2]
[406698501,1772096953124,-180.68072,0.00013818,2]
[406698502,1772096953147,-360.00532856,0.00013819,2]
[406698503,1772096953167,-500.0,0.00013821,2]
[406698504,1772096953189,-1000.0,0.00013821,2]
[406698505,1772096953219,-500.0,0.00013821,2]
[406698506,1772096953258,-567.38717322,0.00013821,2]
[406698507,1772096953279,-500.0,0.00013821,2]
[406698508,1772096953306,-924.88886674,0.00014175,3]
[406698509,1772096953331,-919.97123302,0.00014175,2]
[406698510,1772096953353,-1677.3711697,0.00014175,2]
[406698511,1772096953374,-1246.43565815,0.00014245,2]
[406698512,1772096953394,-550.91355178,0.00014246,2]
[406698513,1772096953415,-500.0,0.00014247,2]
[406698514,1772096953435,-500.0,0.00014247,2]
[406698515,1772096953454,-613.63308772,0.00014247,2]
[406698516,1772096953475,-284.82317169,0.00014247,2]
[406698517,1772096953497,-1000.0,0.00014247,2]
[406698518,1772096953518,-1000.0,0.00014247,2]
[406698519,1772096953542,-284.25875624,0.0001431,2]
[406698520,1772096953564,-180.68072,0.00014355,2]
[406698521,1772096953586,-1500.0,0.00014368,2]
[406698522,1772096953609,-375.23438562,0.00014795,2]
[406698523,1772096953631,-587.0,0.00014824,2]
[406698524,1772096953652,-180.68072,0.00014891,2]